bitfinex-derivatives/quotes_SOLF0:USTF0_20250523
["timestamp","ask_amount","ask_price","bid_price","bid_amount"]
[1748016571951,0.03901493,181.11,181.1,5.5202]
[1748016572156,1.9719,181.2,181.08,182.18780247]
[1748016572353,1.9719,181.2,181.08,176.66780247]
[1748016572653,3.7311,181.26,181.16,23.10780247]
[1748016572852,3.7311,181.26,181.17,258.48]
[1748016573055,0.03990744,181.23,181.2,0.0419515]
[1748016573260,0.03990744,181.23,181.2,23.14975397]
[1748016573445,3.8118,181.33,181.2,28.66975397]
[1748016573651,1.969,181.33,181.24,23.10780247]
[1748016573849,1.969,181.33,181.25,153.54]
[1748016574147,1.969,181.33,181.26,104.94]
[1748016574558,0.03884342,181.31,181.28,0.04160728]
[1748016576857,5.5144,181.29,181.28,0.04160728]
[1748016577656,5.5153,181.26,181.25,153.54]
[1748016577856,153.5,181.35,181.19,23.10780247]
[1748016578056,153.5,181.35,181.2,258.4]
[1748016578755,0.03909221,181.29,181.26,0.0416195]
[1748016578954,0.03781388,181.29,181.26,0.04182479]
[1748016579257,5.5153,181.27,181.26,0.04182479]
[1748016580063,5.55241388,181.29,181.26,0.04182479]
[1748016580260,0.03781388,181.29,181.26,0.04182479]
[1748016580560,5.5148,181.28,181.26,0.04182479]
[1748016580760,0.03781388,181.29,181.26,0.04182479]
[1748016581262,5.515,181.28,181.26,0.04182479]
[1748016581560,0.03781388,181.29,181.26,0.04182479]
[1748016581754,0.03781388,181.29,181.26,153.46182479]
[1748016582062,0.03781388,181.29,181.26,158.97712479]
[1748016582258,0.03781388,181.29,181.26,153.46182479]
[1748016585261,0.03781388,181.29,181.26,158.97712479]
[1748016585463,0.03781388,181.29,181.26,153.46182479]
[1748016586372,0.03781388,181.29,181.26,158.97692479]
[1748016586665,0.03781388,181.29,181.26,153.46182479]
[1748016587762,0.03781388,181.29,181.26,158.97712479]
[1748016588466,0.03781388,181.29,181.27,5.515]
[1748016588760,0.03781388,181.29,181.28,104.82]
[1748016591260,0.03781388,181.29,181.28,110.3347]
[1748016591461,0.03781388,181.29,181.26,153.46182479]
[1748016591665,0.03781388,181.29,181.26,258.28182479]
[1748016593166,0.03781388,181.29,181.27,5.515]
[1748016593568,0.03781388,181.29,181.26,258.28182479]
[1748016593770,0.03781388,181.29,181.26,0.04182479]
[1748016594370,5.515,181.27,181.26,0.04182479]
[1748016594766,5.5164,181.23,181.19,104.82]
[1748016595167,5.5166,181.22,181.19,104.82]
[1748016595371,5.6239,181.28,181.19,104.82]
[1748016595869,5.6239,181.28,181.17,624.98]
[1748016595870,0.03715617,181.25,181.22,0.03859831]
[1748016596073,0.03715617,181.25,181.17,104.82]
[1748016596272,5.5173,181.2,181.17,104.82]
[1748016596978,5.55214011,181.2,181.17,104.86115452]
[1748016597477,5.5175,181.19,181.17,104.86115452]
[1748016597777,0.03484011,181.2,181.17,104.86115452]
[1748016597975,5.5177,181.19,181.17,104.86115452]
[1748016598274,0.03484011,181.2,181.17,0.04115452]
[1748016600476,5.6239,181.28,181.18,5.5175]
[1748016600872,5.6239,181.28,181.17,161.84606993]
[1748016601075,5.6239,181.28,181.17,167.36406993]
[1748016601281,5.6239,181.28,181.17,153.358]
[1748016601478,5.5165,181.23,181.18,5.5177]
[1748016601674,0.04096948,181.24,181.21,0.04124676]
[1748016601873,5.55716948,181.24,181.21,0.04124676]
[1748016602180,0.04096948,181.24,181.22,104.84]
[1748016605081,1.9261,181.32,181.22,252.68]
[1748016605388,5.5154,181.26,181.22,252.68]
[1748016605886,5.55250571,181.26,181.22,252.71670053]
[1748016606586,0.03710571,181.26,181.22,252.71670053]
[1748016607187,0.03710571,181.26,181.25,5.5157]
[1748016607888,5.5142,181.3,181.25,5.5157]
[1748016608075,1.9261,181.32,181.24,5.5159]
[1748016608278,3.8869,181.33,181.23,14.00606993]
[1748016608479,142.26,181.4,181.27,14.00606993]
[1748016608687,3.8798,181.35,181.23,14.00606993]
[1748016608887,5.5147,181.29,181.27,0.04090881]
[1748016609186,0.03484703,181.31,181.27,0.04090881]
[1748016610090,0.03484703,181.31,181.27,5.55570881]
[1748016610489,0.03484703,181.31,181.27,0.04090881]
[1748016610688,5.5146,181.29,181.27,0.04090881]
[1748016610889,0.03484703,181.31,181.27,0.04090881]
[1748016611192,5.54874703,181.31,181.27,5.55590881]
[1748016611390,5.54874703,181.31,181.27,0.04090881]
[1748016612188,5.5142,181.3,181.27,0.04090881]
[1748016612492,0.03484703,181.31,181.27,0.04090881]
[1748016613195,0.03484703,181.31,181.27,14.04697874]
[1748016613495,0.03484703,181.31,181.3,5.5141]
[1748016613695,0.03484703,181.31,181.3,142.24]
[1748016613899,0.03484703,181.31,181.3,147.7541]
[1748016615199,142.26,181.4,181.3,142.24]
[1748016615388,3.9175,181.4,181.3,142.24]
[1748016615699,5.5121,181.37,181.3,142.24]
[1748016615899,3.9175,181.4,181.3,142.24]
[1748016616094,5.5135,181.33,181.3,104.82]
[1748016616397,5.55020582,181.33,181.3,104.85876919]
[1748016616594,5.5137,181.32,181.3,104.85876919]
[1748016616796,0.03670582,181.33,181.3,104.85876919]
[1748016617701,5.55020582,181.33,181.3,104.85876919]
[1748016617888,0.03670582,181.33,181.3,104.85876919]
[1748016618392,0.03670582,181.33,181.24,4.98488559]
[1748016618589,142.25670582,181.33,181.24,4.98488559]
[1748016618796,1.8511,181.32,181.24,4.98488559]
[1748016619189,1.897,181.31,181.24,4.98488559]
[1748016619390,0.03743374,181.29,181.26,0.03827011]
[1748016619591,0.03743374,181.29,181.24,4.98488559]
[1748016620301,0.03743374,181.29,181.22,142.22]
[1748016620499,5.5165,181.23,181.21,111.52517885]
[1748016620799,0.04188606,181.24,181.21,6.72517885]
[1748016620996,5.5166,181.22,181.21,6.76613761]
[1748016621195,0.03905311,181.24,181.14,19.0103345]
[1748016621396,0.03905311,181.24,181.15,104.82]
[1748016621903,0.03905311,181.24,181.15,110.3387]
[1748016622103,0.03905311,181.24,181.15,104.82]
[1748016622401,0.03905311,181.24,181.18,0.04007249]
[1748016622802,5.5168,181.22,181.18,0.04007249]
[1748016623191,0.03905311,181.24,181.18,0.04007249]
[1748016623395,5.5175,181.2,181.18,0.04007249]
[1748016625001,5.517,181.21,181.18,0.04007249]
[1748016625497,0.03905311,181.24,181.18,0.04007249]
[1748016625698,5.5169,181.22,181.18,0.04007249]
[1748016625898,0.03905311,181.24,181.18,0.04007249]
[1748016627806,5.5179,181.19,181.18,0.04007249]
[1748016628194,5.5203,181.12,181.08,142.28]
[1748016628407,1.8501,181.18,181.09,104.84]
[1748016628698,1.9573,181.19,181.1,14.00606993]
[1748016629106,142.28,181.22,181.1,14.00606993]
[1748016629300,0.037213,181.16,181.13,0.04157712]
[1748016630001,5.5176,181.21,181.14,14.00606993]
[1748016630197,1.9573,181.25,181.13,142.3]
[1748016630405,5.5189,181.16,181.13,142.3]
[1748016630800,5.55930839,181.16,181.13,142.34254778]
[1748016630996,5.5192,181.15,181.14,104.86]
[1748016631202,0.04040839,181.16,181.13,142.34254778]
[1748016631404,5.5192,181.15,181.14,104.86]
[1748016631904,0.04040839,181.16,181.14,104.86]
[1748016632400,142.34040839,181.16,181.04,142.3]
[1748016632599,3.7505,181.15,181.05,104.86]
[1748016632807,3.7505,181.15,181.0,144.2282]
[1748016633000,5.521,181.1,181.03,5.5226]
[1748016633202,5.521,181.1,181.01,104.86]
[1748016633405,0.03782992,181.07,181.04,0.03930183]
[1748016633604,0.04072023,181.07,181.04,0.03904825]
[1748016634703,0.04072023,181.07,181.06,5.5219]
[1748016634904,0.04072023,181.07,181.04,0.03904825]
[1748016635309,0.04072023,181.07,181.05,5.5222]
[1748016635610,3.7505,181.15,181.05,142.34]
[1748016635804,3.7505,181.15,181.02,104.86]
[1748016636004,3.7505,181.15,181.01,142.34]
[1748016636211,5.5219,181.07,181.01,142.34]
[1748016636415,142.34,181.1,181.01,142.34]
[1748016636612,0.0374234,181.07,181.04,0.04152276]
[1748016636811,5.522,181.06,181.04,0.04152276]
[1748016637113,0.0374234,181.07,181.04,0.04152276]
[1748016637904,5.5222,181.05,181.04,0.04152276]
[1748016639417,144.72,181.05,180.93,104.92]
[1748016639621,139.2,181.05,180.93,104.92]
[1748016639814,3.67,181.06,180.93,104.92]
[1748016639815,139.2,181.08,180.97,14.00606993]
[1748016640114,139.2,181.12,180.98,141.1258]
[1748016640311,0.04256258,181.07,181.05,5.5222]
[1748016640612,0.03692186,181.08,181.05,104.92]
[1748016640909,0.03692186,181.08,181.07,5.5216]
[1748016641919,141.0442,181.18,181.11,5.5204]
[1748016642116,141.0442,181.18,181.05,118.92606993]
[1748016642311,5.5193,181.15,181.05,118.92606993]
[1748016642517,478.8029,181.2,181.09,14.00606993]
[1748016642818,23.7972068,181.3,181.05,104.92]
[1748016642819,18.89172141,181.21,181.1,139.22]
[1748016643015,0.04098632,181.17,181.14,0.04027345]
[1748016643219,0.04098632,181.17,181.14,104.96027345]
[1748016643520,5.5192,181.15,181.14,104.96027345]
[1748016643815,5.5192,181.15,181.14,0.04027345]
[1748016644415,5.55988632,181.17,181.14,0.04027345]
[1748016644719,0.04098632,181.17,181.14,0.04027345]
[1748016644913,0.04098632,181.17,181.16,5.5189]
[1748016645111,0.04098632,181.17,181.14,0.04027345]
[1748016645512,0.04098632,181.17,181.16,5.5189]
[1748016645913,0.04098632,181.17,181.14,0.04027345]
[1748016646518,0.04098632,181.17,181.15,5.5192]
[1748016647021,0.04098632,181.17,181.14,0.04027345]
[1748016647221,5.5192,181.15,181.14,0.04027345]
[1748016647520,0.04098632,181.17,181.14,0.04027345]
[1748016647720,5.5191,181.16,181.14,0.04027345]
[1748016647921,0.04098632,181.17,181.14,0.04027345]
[1748016648118,5.5189,181.16,181.14,0.04027345]
[1748016648419,0.04098632,181.17,181.14,0.04027345]
[1748016648614,0.04098632,181.17,181.05,104.9]
[1748016648810,3.8255,181.17,181.05,104.9]
[1748016649219,5.5191,181.16,181.1,5.5205]
[1748016649418,139.2,181.22,181.09,139.2]
[1748016649629,0.04125361,181.17,181.14,0.04189352]
[1748016650010,5.5189,181.16,181.14,0.04189352]
[1748016651022,5.5192,181.15,181.14,0.04189352]
[1748016651725,139.24125361,181.17,181.03,139.2]
[1748016652025,1.8966,181.16,181.04,104.9]
[1748016652734,0.04215268,181.12,181.04,104.9]
[1748016652916,0.04215268,181.12,181.03,139.2]
[1748016653325,5.5205,181.11,181.05,5.522]
[1748016653522,5.5205,181.11,181.03,139.2]
[1748016653718,0.04215268,181.12,181.03,139.2]
[1748016654432,0.04215268,181.12,181.04,14.00606993]
[1748016655043,0.04215268,181.12,181.1,5.5206]
[1748016655218,0.04215268,181.12,181.08,139.2]
[1748016656929,0.04215268,181.12,181.09,5.5209]
[1748016657430,0.04215268,181.12,181.1,5.5207]
[1748016657727,0.04215268,181.12,181.11,104.92]
[1748016658131,142.8112,181.21,181.12,5.5199]
[1748016658324,142.8112,181.21,181.11,104.92]
[1748016658639,5.5187,181.17,181.13,5.5197]
[1748016659128,0.03765522,181.17,181.13,5.55786979]
[1748016659334,0.03765522,181.17,181.13,0.03816979]
[1748016659628,0.03765522,181.17,181.13,139.23816979]
[1748016659835,0.03765522,181.17,181.15,5.5189]
[1748016660022,0.03765522,181.17,181.13,139.23816979]
[1748016660223,0.03765522,181.17,181.13,0.03816979]
[1748016660423,5.5195,181.14,181.13,0.03816979]
[1748016661628,0.03765522,181.17,181.13,0.03816979]
[1748016662431,5.5191,181.16,181.13,0.03816979]
[1748016662631,0.03765522,181.17,181.13,0.03816979]
[1748016663529,66.0,181.16,181.07,139.2]
[1748016663734,139.2,181.15,181.01,104.92]
[1748016664135,5.521,181.1,181.05,5.5222]
[1748016664335,139.2,181.15,181.05,5.5222]
[1748016664540,0.03748408,181.12,181.05,5.5222]
[1748016664736,5.5208,181.1,181.05,5.5222]
[1748016664938,0.03748408,181.12,181.05,139.2]
[1748016665332,0.03748408,181.12,181.06,14.00606993]
[1748016665636,0.03748408,181.12,181.1,5.5206]
[1748016665835,0.03748408,181.12,181.1,110.4406]
[1748016666139,0.03748408,181.12,181.1,104.92]
[1748016666440,1.9614,181.22,181.1,258.14606993]
[1748016666737,141.1814,181.22,181.1,258.14606993]
[1748016667148,5.5181,181.19,181.14,5.5193]
[1748016667445,0.0377424,181.18,181.15,0.03567879]
[1748016669046,5.5563424,181.18,181.15,0.03567879]
[1748016669248,0.0377424,181.18,181.15,0.03567879]
[1748016669748,5.5189,181.17,181.15,0.03567879]
[1748016670148,0.0377424,181.18,181.15,0.03567879]
[1748016671444,5.5561424,181.18,181.15,5.55477879]
[1748016672252,0.0377424,181.18,181.15,5.55477879]
[1748016672450,0.0377424,181.18,181.15,0.03567879]
[1748016674451,5.5189,181.17,181.15,0.03567879]
[1748016674752,0.0377424,181.18,181.15,0.03567879]
[1748016674956,5.5189,181.16,181.15,0.03567879]
[1748016675248,136.56,181.16,181.02,143.35736826]
[1748016675443,136.56,181.16,181.03,104.9]
[1748016675639,136.56,181.16,181.02,136.56]
[1748016676151,0.03645064,181.11,181.02,136.56]
[1748016676450,136.56,181.1,181.02,136.56]
[1748016676952,140.3997,181.1,181.0,104.9]
[1748016677152,0.03697344,181.07,181.0,104.9]
[1748016678551,5.5223,181.05,181.0,104.9]
[1748016678751,0.03697344,181.07,181.0,104.9]
[1748016679253,5.55887344,181.07,181.02,5.523]
[1748016679551,0.03697344,181.07,181.0,104.9]
[1748016681548,5.5223,181.05,181.0,104.9]
[1748016681753,5.5223,181.05,181.0,110.4238]
[1748016682053,0.03697344,181.07,181.0,104.9]
[1748016683758,0.03697344,181.07,181.01,14.00606993]
[1748016683957,136.62,181.16,181.05,14.00606993]
[1748016684161,136.62,181.16,181.06,138.5095]
[1748016684358,136.62,181.16,181.06,140.3128]
[1748016684560,1.8338,181.2,181.09,14.00606993]
[1748016684758,5.5179,181.2,181.16,5.5188]
[1748016685060,0.03693598,181.2,181.16,0.03929877]
[1748016685745,5.5186,181.17,181.16,0.03929877]
[1748016686453,5.5202,181.13,181.1,104.94]
[1748016686655,136.58,181.18,181.1,104.94]
[1748016687359,0.03657572,181.16,181.1,110.4605]
[1748016687560,5.5193,181.15,181.1,110.4605]
[1748016687761,0.03657572,181.16,181.1,104.94]
[1748016688063,5.5196,181.14,181.1,104.94]
[1748016688261,0.03657572,181.16,181.1,104.94]
[1748016689063,5.52,181.13,181.1,104.94]
[1748016689265,0.03657572,181.16,181.1,104.94]
[1748016689563,5.5193,181.15,181.1,104.94]
[1748016689763,0.03657572,181.16,181.1,104.94]
[1748016690364,0.03657572,181.16,181.11,136.58]
[1748016691264,0.03657572,181.16,181.14,5.5194]
[1748016691567,0.03657572,181.16,181.12,1.8202]
[1748016691863,0.03657572,181.16,181.11,142.1002]
[1748016692256,0.03657572,181.16,181.11,136.58]
[1748016692559,0.03657572,181.16,181.12,5.5201]
[1748016692864,0.03657572,181.16,181.11,136.58]
[1748016693463,0.03657572,181.16,181.09,104.9]
[1748016694668,5.5201,181.13,181.09,104.9]
[1748016694868,0.03657572,181.16,181.09,104.9]
[1748016695775,0.03657572,181.16,181.09,118.90606993]
[1748016696668,5.5195,181.15,181.1,5.5206]
[1748016696873,0.03657572,181.16,181.09,104.9]
[1748016697272,5.55577572,181.16,181.1,5.5207]
[1748016697569,5.55577572,181.16,181.1,110.4407]
[1748016698171,0.03657572,181.16,181.1,104.92]
[1748016700978,5.55557572,181.16,181.1,104.92]
[1748016701176,0.03657572,181.16,181.11,5.5205]
[1748016702080,0.03657572,181.16,181.12,104.9]
[1748016702690,5.5193,181.15,181.12,104.9]
[1748016702985,0.03657572,181.16,181.12,104.9]
[1748016703982,5.5194,181.15,181.12,104.9]
[1748016704282,0.03657572,181.16,181.07,150.58606993]
[1748016704482,5.5202,181.12,181.08,104.9]
[1748016704687,0.0414638,181.12,181.07,136.58]
[1748016704890,5.5617638,181.12,181.08,110.4213]
[1748016705088,0.0414638,181.12,181.08,110.4213]
[1748016705289,0.0414638,181.12,181.08,104.9]
[1748016705792,0.0414638,181.12,181.08,118.90606993]
[1748016706384,0.0414638,181.12,181.11,5.5205]
[1748016706583,136.58,181.21,181.08,118.90606993]
[1748016707386,136.58,181.21,181.08,104.9]
[1748016707589,5.5196,181.14,181.13,0.03842265]
[1748016708490,0.03751248,181.16,181.13,0.03842265]
[1748016709688,0.03751248,181.16,181.13,136.43842265]
[1748016709891,0.03751248,181.16,181.15,5.5193]
[1748016710079,0.03751248,181.16,181.13,136.43842265]
[1748016711393,5.55661248,181.16,181.13,136.43842265]
[1748016712191,0.03751248,181.16,181.13,141.95822265]
[1748016712485,0.03751248,181.16,181.13,136.43842265]
[1748016712986,0.03751248,181.16,181.15,5.5193]
[1748016714790,138.3112,181.25,181.19,5.518]
[1748016714993,136.4,181.25,181.17,104.9]
[1748016715292,5.5166,181.24,181.17,104.9]
[1748016715490,5.5166,181.24,181.21,5.5172]
[1748016715693,5.5168,181.23,181.18,136.38]
[1748016715991,0.03516846,181.22,181.2,5.5176]
[1748016716194,0.03516846,181.22,181.19,0.03865488]
[1748016716492,153.07790177,181.35,181.19,0.03865488]
[1748016716686,156.88150177,181.35,181.18,150.38606993]
[1748016716887,5.5147,181.3,181.18,150.38606993]
[1748016717391,0.03928774,181.26,181.22,0.03940549]
[1748016717591,0.03559795,181.26,181.23,136.36]
[1748016718393,0.03559795,181.26,181.25,5.5162]
[1748016718588,0.03559795,181.26,181.25,104.88]
[1748016718791,5.5165,181.24,181.23,136.36]
[1748016718991,0.03559795,181.26,181.23,241.24]
[1748016719292,5.5163,181.25,181.23,241.24]
[1748016719688,0.03559795,181.26,181.23,241.24]
[1748016719992,5.55169795,181.26,181.23,241.24]
[1748016720384,0.03559795,181.26,181.23,241.24]
[1748016720599,0.03559795,181.26,181.25,5.5162]
[1748016721194,0.03559795,181.26,181.24,5.5164]
[1748016721398,0.03559795,181.26,181.23,241.24]
[1748016721898,0.03559795,181.26,181.23,246.7568]
[1748016722196,0.03559795,181.26,181.23,241.24]
[1748016722501,0.03559795,181.26,181.25,5.5162]
[1748016722996,13.37432141,181.45,181.25,14.00606993]
[1748016723318,3.9144,181.44,181.25,14.00606993]
[1748016723591,5.5134,181.35,181.29,5.5149]
[1748016723801,136.34,181.39,181.26,241.2]
[1748016723991,0.03746304,181.34,181.31,0.04112326]
[1748016724192,5.514,181.33,181.31,0.04112326]
[1748016724391,0.03746304,181.34,181.31,0.04112326]
[1748016725592,5.5141,181.32,181.31,0.04112326]
[1748016725791,0.03746304,181.34,181.31,0.04112326]
[1748016726094,5.55126304,181.34,181.31,0.04112326]
[1748016726294,0.03746304,181.34,181.31,0.04112326]
[1748016727406,5.5141,181.32,181.31,0.04112326]
[1748016728107,5.5141,181.32,181.06,27.49740443]
[1748016728108,5.52,181.32,181.14,476.74]
[1748016728402,3.6137,181.31,181.18,14.00606993]
[1748016728603,5.5162,181.26,181.18,14.00606993]
[1748016728903,3.6137,181.31,181.18,14.00606993]
[1748016729104,0.03766064,181.26,181.23,0.03650545]
[1748016729297,5.5162,181.25,181.23,0.03650545]
[1748016729907,14.00606993,181.41,181.24,104.84]
[1748016730204,136.3,181.36,181.27,5.5155]
[1748016730406,136.3,181.36,181.24,104.84]
[1748016730603,3.6137,181.37,181.26,14.00606993]
[1748016730813,3.6137,181.37,181.29,5.5148]
[1748016731005,5.55504614,181.35,181.31,0.0354545]
[1748016731203,0.04154614,181.35,181.31,0.0354545]
[1748016731701,5.5136,181.34,181.31,0.0354545]
[1748016731900,0.04154614,181.35,181.31,0.0354545]
[1748016732204,0.04154614,181.35,181.32,104.82]
[1748016732608,0.04154614,181.35,181.32,240.74]
[1748016733204,0.04154614,181.35,181.31,0.0354545]
[1748016733500,0.04154614,181.35,181.32,5.5141]
[1748016733708,0.04154614,181.35,181.31,0.0354545]
[1748016734210,0.04154614,181.35,181.32,135.92]
[1748016735305,0.04154614,181.35,181.32,141.434]
[1748016735704,0.04154614,181.35,181.32,135.92]
[1748016735907,0.04154614,181.35,181.31,0.0354545]
[1748016736507,5.5139,181.33,181.31,0.0354545]
[1748016736809,0.04154614,181.35,181.31,0.0354545]
[1748016737012,5.5136,181.34,181.31,0.0354545]
[1748016737212,0.04154614,181.35,181.31,0.0354545]
[1748016737711,5.55474614,181.35,181.31,0.0354545]
[1748016737911,0.04154614,181.35,181.31,0.0354545]
[1748016738317,0.04154614,181.35,181.32,5.5141]
[1748016738617,0.04154614,181.35,181.31,0.0354545]
[1748016740012,135.9,181.34,181.23,104.8]
[1748016740212,3.9333,181.33,181.23,104.8]
[1748016740511,5.5162,181.26,181.22,135.9]
[1748016740906,5.55269914,181.26,181.22,240.7573739]
[1748016741314,0.03649914,181.26,181.22,240.7573739]
[1748016741517,0.03649914,181.26,181.22,0.0373739]
[1748016741724,5.5169,181.23,181.22,0.0373739]
[1748016742713,7.5115,181.25,181.22,0.0373739]
[1748016743112,1.995,181.25,181.22,0.0373739]
[1748016744327,5.5166,181.24,181.22,0.0373739]
[1748016744520,0.03649914,181.26,181.22,0.0373739]
[1748016744917,0.03649914,181.26,181.25,5.5163]
[1748016745218,1.9383,181.33,181.25,104.82]
[1748016745618,1.8536,181.35,181.25,104.82]
[1748016746326,0.03902147,181.32,181.28,0.03880595]
[1748016746518,5.55322147,181.32,181.28,0.03880595]
[1748016746925,0.03902147,181.32,181.28,0.03880595]
[1748016747126,0.03902147,181.32,181.28,5.55410595]
[1748016747825,0.03902147,181.32,181.29,5.5149]
[1748016748134,0.03902147,181.32,181.28,135.95880595]
[1748016748722,0.03902147,181.32,181.3,5.5145]
[1748016749026,0.03902147,181.32,181.28,135.95880595]
[1748016750221,0.03902147,181.32,181.3,5.5145]
[1748016750424,0.03902147,181.32,181.28,135.95880595]
[1748016750926,0.03902147,181.32,181.28,0.03880595]
[1748016751124,0.03902147,181.32,181.29,104.82]
[1748016751625,0.03902147,181.32,181.28,135.95880595]
[1748016751626,0.03902147,181.32,181.28,0.03880595]
[1748016752530,5.5148,181.3,181.28,0.03880595]
[1748016752830,0.03902147,181.32,181.28,0.03880595]
[1748016753230,5.55342147,181.32,181.28,0.03880595]
[1748016753429,0.03902147,181.32,181.28,0.03880595]
[1748016753931,5.55332147,181.32,181.28,0.03880595]
[1748016754831,0.03902147,181.32,181.29,5.5149]
[1748016755125,0.03902147,181.32,181.28,0.03880595]
[1748016756229,0.03902147,181.32,181.28,5.55400595]
[1748016756528,0.03902147,181.32,181.28,0.03880595]
[1748016757532,5.5147,181.31,181.28,0.03880595]
[1748016758128,135.9,181.31,181.19,104.82]
[1748016758331,1.873,181.3,181.19,104.82]
[1748016758731,5.5165,181.25,181.2,5.5176]
[1748016759029,1.873,181.3,181.19,104.82]
[1748016759227,0.04133818,181.24,181.21,0.03753067]
[1748016760730,0.04133818,181.24,181.22,5.517]
[1748016761338,0.04133818,181.24,181.23,5.5169]
[1748016761535,0.04133818,181.24,181.23,135.42]
[1748016763433,0.04133818,181.24,181.21,104.85753067]
[1748016764538,5.5148,181.3,181.25,5.5161]
[1748016764731,5.5148,181.3,181.24,135.44]
[1748016764937,1.8911,181.34,181.24,135.44]
[1748016765138,1.8911,181.34,181.25,5.5161]
[1748016765440,1.8911,181.34,181.17,14.00606993]
[1748016765441,0.03585395,181.31,181.28,6.435e-05]
[1748016765739,5.5169,181.23,181.2,135.44]
[1748016765934,135.44,181.31,181.2,135.44]
[1748016766137,5.5175,181.21,181.2,135.44]
[1748016766539,0.03718094,181.22,181.19,0.0413299]
[1748016766739,5.5178,181.2,181.19,0.0413299]
[1748016769844,0.03718094,181.22,181.12,104.84]
[1748016770051,5.7491,181.25,181.12,104.84]
[1748016770346,5.7491,181.25,181.13,104.84]
[1748016770948,5.5178,181.2,181.17,0.03851532]
[1748016771137,0.04155617,181.21,181.17,0.03851532]
[1748016771341,5.518,181.2,181.17,0.03851532]
[1748016771543,0.04155617,181.21,181.17,0.03851532]
[1748016772747,5.5183,181.19,181.17,0.03851532]
[1748016773149,0.04155617,181.21,181.17,0.03851532]
[1748016773835,5.55915617,181.21,181.17,0.03851532]
[1748016774037,0.04155617,181.21,181.17,0.03851532]
[1748016774451,0.04155617,181.21,181.17,5.55701532]
[1748016774648,0.04155617,181.21,181.17,0.03851532]
[1748016775050,0.04155617,181.21,181.18,5.5182]
[1748016776051,0.04155617,181.21,181.17,5.55711532]
[1748016776242,0.04155617,181.21,181.17,0.03851532]
[1748016776550,0.04155617,181.21,181.18,5.5183]
[1748016776751,0.04155617,181.21,181.17,0.03851532]
[1748016777547,5.5183,181.19,181.17,0.03851532]
[1748016777751,0.04155617,181.21,181.17,0.03851532]
[1748016778452,5.5184,181.18,181.17,0.03851532]
[1748016778844,0.04155617,181.21,181.17,0.03851532]
[1748016779045,5.5178,181.2,181.17,0.03851532]
[1748016779246,0.04155617,181.21,181.17,0.03851532]
[1748016779554,5.5184,181.18,181.17,0.03851532]
[1748016780351,5.5201,181.13,181.09,240.34]
[1748016780744,3.8526,181.2,181.09,240.34]
[1748016781556,5.5196,181.14,181.13,0.04006193]
[1748016782357,5.5194,181.15,181.13,0.04006193]
[1748016782652,0.0378071,181.16,181.13,0.04006193]
[1748016782855,5.5570071,181.16,181.13,0.04006193]
[1748016783462,5.5193,181.15,181.13,0.04006193]
[1748016783647,0.0378071,181.16,181.13,0.04006193]
[1748016784554,5.5196,181.14,181.13,6.193e-05]
[1748016784747,135.5,181.15,181.03,1.9437]
[1748016785053,135.5,181.15,181.0,5.13853854]
[1748016785054,66.0,181.14,181.0,5.13853854]
[1748016785254,66.0,181.13,181.0,5.13853854]
[1748016785453,66.0,181.12,181.0,5.13853854]
[1748016785649,0.03615389,181.08,181.0,5.13853854]
[1748016785843,135.5,181.07,181.0,5.13853854]
[1748016786050,5.5242,180.99,180.98,6.79736826]
[1748016786652,5.5242,180.99,180.98,0.79396826]
[1748016786855,5.5251,180.96,180.95,10.08884197]
[1748016787256,2.02913711,181.0,180.88,9.3911]
[1748016787452,0.04058846,180.96,180.88,3.8638]
[1748016787651,135.54058846,180.96,180.88,1.9483]
[1748016787954,135.54058846,180.96,180.87,1.8118]
[1748016788657,5.5262,180.93,180.87,1.8118]
[1748016788857,0.0407452,180.92,180.87,1.8118]
[1748016789355,0.0407452,180.92,180.87,7.3395]
[1748016789551,0.0407452,180.92,180.87,1.8118]
[1748016789858,0.0407452,180.92,180.9,5.5269]
[1748016790051,0.0407452,180.92,180.87,137.3718]
[1748016790253,0.0407452,180.92,180.87,1.8118]
[1748016790554,0.0407452,180.92,180.9,5.5269]